fUST/lending_fUST_20251128
["ID","MTS","AMOUNT","RATE_DAILY","PERIOD"]
[395011272,1764323432446,-1126.0,7.186e-05,2]
[395011273,1764323432455,-603.78578835,7.187e-05,2]
[395011492,1764323443947,-8444.21421166,7.187e-05,2]
[395011493,1764323443957,-300.0,7.283e-05,2]
[395011494,1764323443967,-453.4840593,7.29e-05,2]
[395011495,1764323443977,-300.0,7.432e-05,2]
[395011496,1764323443987,-300.0,7.432e-05,2]
[395011497,1764323443996,-300.0,7.432e-05,2]
[395011498,1764323444006,-300.0,7.432e-05,2]
[395011499,1764323444015,-300.0,7.432e-05,2]
[395011500,1764323444025,-300.0,7.432e-05,2]
[395011501,1764323444034,-300.0,7.432e-05,2]
[395011502,1764323444043,-300.0,7.432e-05,2]
[395011503,1764323444053,-300.0,7.432e-05,2]
[395011504,1764323444062,-300.0,7.432e-05,2]
[395011505,1764323444072,-300.0,7.432e-05,2]
[395011506,1764323444081,-300.0,7.432e-05,2]
[395011507,1764323444091,-300.0,7.432e-05,2]
[395011508,1764323444100,-300.0,7.432e-05,2]
[395011509,1764323444109,-300.0,7.432e-05,2]
[395011510,1764323444119,-600.0,7.432e-05,2]
[395011511,1764323444128,-720.0,8.175e-05,2]
[395011512,1764323444137,-769.13391503,8.691e-05,2]
[395011513,1764323444147,-864.0,8.993e-05,2]
[395011514,1764323444156,-220.90372109,8.999e-05,2]
[395011515,1764323444166,-1000.0,9.892e-05,2]
[395011516,1764323444175,-2417.84854594,9.924e-05,2]
[395011517,1764323444184,-500.0,9.999e-05,2]
[395011518,1764323444194,-500.0,9.999e-05,2]
[395011519,1764323444203,-270.51694022,9.999e-05,2]
[395011520,1764323444212,-186.62227626,9.999e-05,2]
[395011521,1764323444221,-500.0,9.999e-05,2]
[395011522,1764323444231,-500.0,9.999e-05,2]
[395011523,1764323444240,-500.0,9.999e-05,2]
[395011524,1764323444249,-588.67362521,9.999e-05,2]
[395011525,1764323444258,-256.03447847,9.999e-05,2]
[395011526,1764323444267,-500.0,9.999e-05,2]
[395011527,1764323444276,-500.0,9.999e-05,2]
[395011528,1764323444286,-500.0,9.999e-05,2]
[395011529,1764323444295,-500.0,9.999e-05,2]
[395011530,1764323444304,-500.0,9.999e-05,2]
[395011531,1764323444313,-500.0,9.999e-05,2]
[395011532,1764323444322,-500.0,9.999e-05,2]
[395011533,1764323444331,-500.0,9.999e-05,2]
[395011534,1764323444340,-500.0,9.999e-05,2]
[395011535,1764323444349,-500.0,9.999e-05,2]
[395011536,1764323444359,-500.0,9.999e-05,2]
[395011537,1764323444368,-408.56822682,9.999e-05,2]
[395011543,1764323446634,-1513.24810086,7.115e-05,2]
[395011544,1764323446741,-6930.9661108,7.115e-05,2]
[395011545,1764323446751,-91.43177318,9.999e-05,2]
[395011546,1764323446760,-500.0,9.999e-05,2]
[395011547,1764323446769,-500.0,9.999e-05,2]
[395011548,1764323446778,-500.0,9.999e-05,2]
[395011549,1764323446787,-500.0,9.999e-05,2]
[395011550,1764323446796,-500.0,9.999e-05,2]
[395011551,1764323446805,-5343.29,0.0001,2]
[395011552,1764323446815,-24260.73762303,0.0001,2]
[395011553,1764323446830,-25739.26237697,0.0001,2]
[395011554,1764323446840,-201.93286099,0.0001,2]
[395011555,1764323446849,-209.40437684,0.00010548,2]
[395011556,1764323446858,-160.0,0.0001074,2]
[395011557,1764323446867,-1000.0,0.00010881,2]
[395011558,1764323446876,-244.0,0.00010881,2]
[395011559,1764323446886,-353.59244258,0.00010938,2]
[395011560,1764323446895,-999.0,0.00010959,2]
[395011561,1764323446904,-500.0,0.00010959,2]
[395011562,1764323446913,-640.05126504,0.00010959,2]
[395011563,1764323446922,-254.60089889,0.00010999,2]
[395011564,1764323447008,-217.15233878,0.00011096,2]
[395011565,1764323447018,-225.18697532,0.00011644,2]
[395011566,1764323447027,-1000.0,0.00011969,2]
[395011567,1764323447036,-492.0,0.00011969,2]
[395011568,1764323447045,-233.51889341,0.00012192,2]
[395011569,1764323447054,-242.15909246,0.0001274,2]
[395011570,1764323447062,-7384.65953761,0.000129,2]
[395011571,1764323447071,-7384.6595376,0.000129,2]
[395011572,1764323447083,-288.29807668,0.00012999,2]
[395011573,1764323447092,-1000.0,0.00013166,2]
[395011574,1764323447101,-791.0,0.00013166,2]
[395011575,1764323447111,-251.11897888,0.00013288,2]
[395011576,1764323447121,-7384.6595376,0.00013696,2]
[395011577,1764323447132,-500.0,0.00013698,2]
[395011578,1764323447142,-1300.175415,0.00013699,2]
[395011579,1764323447152,-500.0,0.00013699,2]
[395011580,1764323447161,-1129.0,0.00013699,2]
[395011581,1764323447170,-625.4265,0.00013699,2]
[395011582,1764323447179,-243.36464803,0.00013834,2]
[395011583,1764323447188,-500.0,0.00013834,2]
[395011584,1764323447197,-500.0,0.00013834,2]
[395011585,1764323447207,-500.0,0.00013834,2]
[395011586,1764323447219,-500.0,0.00013834,2]
[395011587,1764323447228,-500.0,0.00013834,2]
[395011588,1764323447237,-500.0,0.00013834,2]
[395011589,1764323447245,-644.3228681,0.00013834,2]
[395011590,1764323447256,-500.0,0.00013834,2]
[395011591,1764323447265,-500.0,0.00013834,2]
[395011592,1764323447274,-500.0,0.00013834,2]
[395011593,1764323447282,-500.0,0.00013834,2]
[395011594,1764323447291,-500.0,0.00013834,2]
[395011595,1764323447300,-500.0,0.00013834,2]
[395011596,1764323447308,-628.96648896,0.00013836,2]
[395011597,1764323447318,-1129.0,0.00013836,2]
[395011598,1764323447327,-260.4103811,0.00013836,2]
[395011599,1764323447337,-769.13391503,0.00013887,2]
[395011600,1764323447346,-1129.0,0.00013973,2]
[395011601,1764323447356,-1129.0,0.0001411,2]
[395011602,1764323447366,-1129.0,0.00014247,2]
[395011603,1764323447375,-1129.0,0.00014384,2]
[395011604,1764323447384,-270.0455652,0.00014384,2]
[395011605,1764323447393,-1000.0,0.00014483,2]
[395011606,1764323447403,-1000.0,0.00014483,2]
[395011607,1764323447412,-1129.0,0.00014521,2]
[395011608,1764323447421,-1129.0,0.00014658,2]
[395011609,1764323447430,-500.0,0.00014794,2]
[395011610,1764323447439,-1129.0,0.00014795,2]
[395011611,1764323447447,-1129.0,0.00014932,2]
[395011612,1764323447457,-280.03725112,0.00014932,2]
[395011613,1764323447466,-321.99525447,0.00014999,2]
[395011614,1764323447475,-800.0,0.00015068,2]
[395011615,1764323447484,-1129.0,0.00015069,2]
[395011616,1764323447493,-1129.0,0.00015206,2]
[395011617,1764323447502,-1129.0,0.00015343,2]
[395011618,1764323447511,-1129.0,0.0001548,2]
[395011619,1764323447520,-290.39862941,0.0001548,2]
[395011620,1764323447529,-7384.6595376,0.00015594,2]
[395011621,1764323447539,-1129.0,0.00015617,2]
[395011622,1764323447548,-1129.0,0.00015754,2]
[395011623,1764323447558,-500.0,0.0001589,2]
[395011624,1764323447567,-1129.0,0.00015891,2]
[395011625,1764323447575,-152.92,0.000159,2]
[395011626,1764323447584,-1000.0,0.00015931,2]
[395011627,1764323447594,-1000.0,0.00015931,2]
[395011628,1764323447604,-579.0,0.00015931,2]
[395011629,1764323447616,-1129.0,0.00016028,2]
[395011630,1764323447625,-301.1433787,0.00016028,2]
[395011631,1764323447634,-1600.0,0.00016164,2]
[395011632,1764323447643,-1129.0,0.00016165,2]
[395011633,1764323447652,-150.0,0.00016187,2]
[395011634,1764323447662,-1129.0,0.00016302,2]
[395011635,1764323447671,-1000.0,0.00016438,2]
[395011636,1764323447680,-1000.0,0.00016438,2]
[395011637,1764323447691,-1129.0,0.00016439,2]
[395011638,1764323447702,-1129.0,0.00016576,2]
[395011639,1764323447711,-1129.0,0.00016713,2]
[395011640,1764323447721,-182.751609,0.00016749,2]
[395011641,1764323447730,-1138.00835376,0.0001685,2]
[395011642,1764323447739,-150.0,0.00016958,2]
[395011643,1764323447748,-500.0,0.00016986,2]
[395011644,1764323447757,-355.69243227,0.00016999,2]
[395011645,1764323447766,-182.751609,0.00017122,2]
[395011646,1764323447776,-265.31095231,0.0001726,2]
[395011647,1764323447785,-182.751609,0.00017495,2]
[395011648,1764323447795,-1000.0,0.00017524,2]
[395011649,1764323447804,-1000.0,0.00017524,2]
[395011650,1764323447815,-1000.0,0.00017524,2]
[395011651,1764323447824,-150.0,0.00017729,2]
[395011652,1764323447835,-500.0,0.00017808,2]
[395011653,1764323447845,-500.0,0.00017808,2]
[395011654,1764323447855,-500.0,0.00017808,2]
[395011655,1764323447867,-500.0,0.00017808,2]
[395011656,1764323447879,-500.0,0.00017808,2]
[395011657,1764323447889,-500.0,0.00017808,2]
[395011658,1764323447898,-32.01891717,0.00017808,2]
[395011660,1764324055616,-272.70709813,6.973e-05,2]
[395011661,1764324280591,200.0,0.0002,30]
[395011662,1764324284909,200.0,0.0002,30]
[395011663,1764324288333,200.0,0.0002,30]
[395011664,1764324386257,-154.63260476,6.938e-05,2]
[395011665,1764324386280,-124.36739524,6.973e-05,2]
[395011704,1764324632555,-240.26520952,6.903e-05,2]
[395011706,1764324632564,-30.26520952,6.973e-05,2]
[395011708,1764324632573,-210.0,6.973e-05,2]
[395011710,1764324632583,-300.0,7.182e-05,2]
[395011712,1764324632592,-61.07298166,7.182e-05,2]
[395011714,1764324632603,-420.92701834,7.182e-05,2]
[395011716,1764324632612,-300.0,7.182e-05,2]
[395011717,1764324632621,-500.0,7.183e-05,2]
[395011718,1764324632630,-189.79806555,7.183e-05,2]
[395011719,1764324632656,-380.66238402,7.183e-05,2]
[395011720,1764324632665,-584.04481885,7.183e-05,2]
[395011721,1764324632673,-570.46044957,7.183e-05,2]
[395011722,1764324632682,-500.0,7.183e-05,2]
[395011723,1764324632691,-584.04481885,7.183e-05,2]
[395011724,1764324632699,-500.0,7.183e-05,2]
[395011725,1764324632708,-570.46044957,7.183e-05,2]
[395011726,1764324632717,-584.04481885,7.183e-05,2]
[395011727,1764324632726,-500.0,7.183e-05,2]
[395011728,1764324632735,-584.04481885,7.183e-05,2]
[395011729,1764324632744,-500.0,7.183e-05,2]
[395011730,1764324632753,-570.46044957,7.183e-05,2]
[395011731,1764324632762,-584.04481885,7.183e-05,2]
[395011732,1764324632770,-497.60799012,7.183e-05,2]
[395011733,1764324632779,-570.46044957,7.183e-05,2]
[395011734,1764324632788,-584.04481885,7.183e-05,2]
[395011735,1764324632797,-500.0,7.183e-05,2]
[395011736,1764324632806,-570.46044957,7.183e-05,2]
[395011737,1764324632814,-584.04481885,7.183e-05,2]
[395011738,1764324632824,-570.46044957,7.183e-05,2]
[395011740,1764324632833,-584.04481885,7.183e-05,2]
[395011742,1764324632842,-570.46044957,7.183e-05,2]
[395011744,1764324632852,-500.0,7.183e-05,2]
[395011746,1764324632861,-584.04481885,7.183e-05,2]
[395011748,1764324632875,-570.46044957,7.183e-05,2]
[395011750,1764324632884,-500.0,7.183e-05,2]
[395011752,1764324632893,-584.04481885,7.183e-05,2]
[395011754,1764324632902,-570.46044957,7.183e-05,2]
[395011756,1764324632911,-584.04481885,7.183e-05,2]
[395011758,1764324632920,-570.46044957,7.183e-05,2]
[395011760,1764324632930,-584.04481885,7.183e-05,2]
[395011762,1764324632939,-570.46044957,7.183e-05,2]
[395011764,1764324632949,-584.04481885,7.183e-05,2]
[395011766,1764324632959,-570.46044957,7.183e-05,2]
[395011768,1764324632968,-570.46044957,7.183e-05,2]
[395011770,1764324632978,-584.04481885,7.183e-05,2]
[395011772,1764324632988,-570.46044957,7.183e-05,2]
[395011774,1764324632997,-584.04481885,7.183e-05,2]
[395011776,1764324633007,-570.46044957,7.183e-05,2]
[395011778,1764324633016,-584.04481885,7.183e-05,2]
[395011780,1764324633026,-570.46044957,7.183e-05,2]
[395011782,1764324633035,-584.04481885,7.183e-05,2]
[395011784,1764324633051,-570.46044957,7.183e-05,2]
[395011786,1764324633061,-570.46044957,7.183e-05,2]
[395011788,1764324633071,-584.04481885,7.183e-05,2]
[395011790,1764324633080,-570.46044957,7.183e-05,2]
[395011792,1764324633090,-584.04481885,7.183e-05,2]
[395011794,1764324633099,-570.46044957,7.183e-05,2]
[395011796,1764324633109,-584.04481885,7.183e-05,2]
[395011798,1764324633119,-570.46044957,7.183e-05,2]
[395011800,1764324633128,-584.04481885,7.183e-05,2]
[395011802,1764324633137,-570.46044957,7.183e-05,2]
[395011804,1764324633147,-584.04481885,7.183e-05,2]
[395011806,1764324633157,-570.46044957,7.183e-05,2]
[395011808,1764324633167,-584.04481885,7.183e-05,2]
[395011810,1764324633177,-570.46044957,7.183e-05,2]
[395011812,1764324633186,-584.04481885,7.183e-05,2]
[395011814,1764324633195,-570.46044957,7.183e-05,2]
[395011816,1764324633204,-570.46044957,7.183e-05,2]
[395011818,1764324633214,-584.04481885,7.183e-05,2]
[395011820,1764324633224,-570.46044957,7.183e-05,2]
[395011822,1764324633233,-570.46044957,7.183e-05,2]
[395011824,1764324633243,-584.04481885,7.183e-05,2]
[395011826,1764324633252,-584.04481885,7.183e-05,2]
[395011828,1764324633265,-570.46044957,7.183e-05,2]
[395011830,1764324633275,-570.46044957,7.183e-05,2]
[395011832,1764324633290,-584.04481885,7.183e-05,2]
[395011834,1764324633301,-570.46044957,7.183e-05,2]
[395011836,1764324633310,-584.04481885,7.183e-05,2]
[395011838,1764324633320,-570.46044957,7.183e-05,2]
[395011840,1764324633329,-584.04481885,7.183e-05,2]
[395011842,1764324633339,-570.46044957,7.183e-05,2]
[395011844,1764324633350,-584.04481885,7.183e-05,2]
[395011846,1764324633359,-570.46044957,7.183e-05,2]
[395011848,1764324633368,-570.46044957,7.183e-05,2]
[395011850,1764324633377,-584.04481885,7.183e-05,2]
[395011851,1764324633387,-570.46044957,7.183e-05,2]
[395011853,1764324633396,-584.04481885,7.183e-05,2]
[395011855,1764324633405,-584.04481885,7.183e-05,2]
[395011857,1764324633415,-570.46044957,7.183e-05,2]
[395011859,1764324633425,-584.04481885,7.183e-05,2]
[395011861,1764324633435,-570.46044957,7.183e-05,2]
[395011863,1764324633444,-584.04481885,7.183e-05,2]
[395011865,1764324633453,-570.46044957,7.183e-05,2]
[395011867,1764324633462,-584.04481885,7.183e-05,2]
[395011869,1764324633471,-570.46044957,7.183e-05,2]
[395011871,1764324633481,-584.04481885,7.183e-05,2]
[395011873,1764324633490,-570.46044957,7.183e-05,2]
[395011875,1764324633500,-570.46044957,7.183e-05,2]
[395011876,1764324633509,-584.04481885,7.183e-05,2]
[395011878,1764324633519,-570.46044957,7.183e-05,2]
[395011879,1764324633528,-584.04481885,7.183e-05,2]
[395011880,1764324633538,-570.46044957,7.183e-05,2]
[395011881,1764324633547,-584.04481885,7.183e-05,2]
[395011882,1764324633556,-570.46044957,7.183e-05,2]
[395011883,1764324633566,-584.04481885,7.183e-05,2]
[395011884,1764324633574,-570.46044957,7.183e-05,2]
[395011885,1764324633584,-584.04481885,7.183e-05,2]
[395011886,1764324633593,-570.46044957,7.183e-05,2]
[395011887,1764324633603,-584.04481885,7.183e-05,2]
[395011888,1764324633612,-584.04481885,7.183e-05,2]
[395011889,1764324633621,-570.46044957,7.183e-05,2]
[395011890,1764324633630,-584.04481885,7.183e-05,2]
[395011891,1764324633639,-584.04481885,7.183e-05,2]
[395011892,1764324633649,-584.04481885,7.183e-05,2]
[395011893,1764324633659,-570.46044957,7.183e-05,2]
[395011894,1764324633668,-570.46044957,7.183e-05,2]
[395011895,1764324633677,-584.04481885,7.183e-05,2]
[395011896,1764324633686,-570.46044957,7.183e-05,2]
[395011897,1764324633695,-584.04481885,7.183e-05,2]
[395011898,1764324633704,-570.46044957,7.183e-05,2]
[395011899,1764324633713,-570.46044957,7.183e-05,2]
[395011900,1764324633984,-584.04481885,7.183e-05,2]
[395011901,1764324633994,-570.46044957,7.183e-05,2]
[395011902,1764324634004,-584.04481885,7.183e-05,2]
[395011903,1764324634013,-584.04481885,7.183e-05,2]
[395011904,1764324634022,-584.04481885,7.183e-05,2]
[395011905,1764324634031,-570.46044957,7.183e-05,2]
[395011906,1764324634041,-570.46044957,7.183e-05,2]
[395011907,1764324634050,-584.04481885,7.183e-05,2]
[395011908,1764324634059,-570.46044957,7.183e-05,2]
[395011909,1764324634068,-584.04481885,7.183e-05,2]
[395011910,1764324634078,-570.46044957,7.183e-05,2]
[395011911,1764324634087,-584.04481885,7.183e-05,2]
[395011912,1764324634096,-584.04481885,7.183e-05,2]
[395011913,1764324634105,-570.46044957,7.183e-05,2]
[395011914,1764324634114,-584.04481885,7.183e-05,2]
[395011915,1764324634124,-570.46044957,7.183e-05,2]
[395011916,1764324634133,-584.04481885,7.183e-05,2]
[395011917,1764324634143,-570.46044957,7.183e-05,2]
[395011918,1764324634151,-570.46044957,7.183e-05,2]
[395011919,1764324634161,-584.04481885,7.183e-05,2]
[395011920,1764324634170,-570.46044957,7.183e-05,2]
[395011921,1764324634179,-584.04481885,7.183e-05,2]
[395011922,1764324634190,-570.46044957,7.183e-05,2]
[395011923,1764324634199,-584.04481885,7.183e-05,2]
[395011924,1764324634208,-570.46044957,7.183e-05,2]
[395011925,1764324634218,-570.46044957,7.183e-05,2]
[395011926,1764324634227,-584.04481885,7.183e-05,2]
[395011927,1764324634236,-570.46044957,7.183e-05,2]
[395011928,1764324634247,-570.46044957,7.183e-05,2]
[395011929,1764324634257,-584.04481885,7.183e-05,2]
[395011930,1764324634270,-584.04481885,7.183e-05,2]
[395011931,1764324634279,-570.46044957,7.183e-05,2]
[395011932,1764324634288,-584.04481885,7.183e-05,2]
[395011933,1764324634298,-570.46044957,7.183e-05,2]
[395011934,1764324634309,-584.04481885,7.183e-05,2]
[395011935,1764324634318,-570.46044957,7.183e-05,2]
[395011936,1764324634328,-584.04481885,7.183e-05,2]
[395011937,1764324634337,-584.04481885,7.183e-05,2]
[395011938,1764324634347,-570.46044957,7.183e-05,2]
[395011939,1764324634356,-584.04481885,7.183e-05,2]
[395011940,1764324634365,-500.0,7.183e-05,2]
[395011941,1764324634374,-500.0,7.183e-05,2]
[395011942,1764324634383,-500.0,7.183e-05,2]
[395011943,1764324634393,-500.0,7.183e-05,2]
[395011944,1764324634403,-500.0,7.183e-05,2]
[395011945,1764324634412,-500.0,7.183e-05,2]
[395011946,1764324634421,-420.95785689,7.183e-05,2]
[395011947,1764324634430,-500.0,7.183e-05,2]
[395011948,1764324634439,-500.0,7.183e-05,2]
[395011949,1764324634448,-500.0,7.183e-05,2]
[395011950,1764324634466,-500.0,7.183e-05,2]
[395011951,1764324634476,-500.0,7.183e-05,2]
[395011952,1764324634485,-500.0,7.183e-05,2]
[395011953,1764324634494,-500.0,7.183e-05,2]
[395011954,1764324634504,-500.0,7.183e-05,2]
[395011955,1764324634514,-500.0,7.183e-05,2]
[395011956,1764324634524,-500.0,7.183e-05,2]
[395011957,1764324634534,-580.97089873,7.183e-05,2]
[395011958,1764324634543,-543.61525196,7.183e-05,2]
[395011959,1764324634552,-580.97089873,7.183e-05,2]
[395011960,1764324634562,-543.61525196,7.183e-05,2]
[395011961,1764324634571,-543.61525196,7.183e-05,2]
[395011962,1764324634581,-580.97089873,7.183e-05,2]
[395011963,1764324634590,-543.61525196,7.183e-05,2]
[395011964,1764324634599,-580.97089873,7.183e-05,2]
[395011965,1764324634610,-543.61525196,7.183e-05,2]
[395011966,1764324634619,-580.97089873,7.183e-05,2]
[395011967,1764324634628,-580.97089873,7.183e-05,2]
[395011968,1764324634637,-543.61525196,7.183e-05,2]
[395011969,1764324634646,-580.97089873,7.183e-05,2]
[395011970,1764324634655,-543.61525196,7.183e-05,2]
[395011971,1764324634665,-580.97089873,7.183e-05,2]
[395011972,1764324634674,-543.61525196,7.183e-05,2]
[395011973,1764324634683,-580.97089873,7.183e-05,2]
[395011974,1764324634693,-543.61525196,7.183e-05,2]
[395011975,1764324634702,-361.28238466,7.183e-05,2]
[395011983,1764324640938,-2e-08,7.183e-05,2]
[395011989,1764324646735,-219.68851405,7.183e-05,2]
[395011990,1764324646745,-543.61525196,7.183e-05,2]
[395011991,1764324646754,-543.61525196,7.183e-05,2]
[395011992,1764324646763,-580.97089873,7.183e-05,2]
[395011993,1764324646772,-580.97089873,7.183e-05,2]
[395011994,1764324646781,-543.61525196,7.183e-05,2]
[395011995,1764324646790,-580.97089873,7.183e-05,2]
[395011996,1764324646799,-580.97089873,7.183e-05,2]
[395011997,1764324646808,-543.61525196,7.183e-05,2]
[395011998,1764324646817,-543.61525196,7.183e-05,2]
[395011999,1764324646826,-580.97089873,7.183e-05,2]
[395012000,1764324646836,-580.97089873,7.183e-05,2]
[395012001,1764324646845,-543.61525196,7.183e-05,2]
[395012002,1764324646855,-580.97089873,7.183e-05,2]
[395012003,1764324646864,-543.61525196,7.183e-05,2]
[395012004,1764324646874,-580.97089873,7.183e-05,2]
[395012005,1764324646884,-543.61525196,7.183e-05,2]
[395012006,1764324646893,-580.97089868,7.183e-05,2]
[395012007,1764324646902,-500.0,7.19e-05,2]
[395012008,1764324646911,-170.35525362,8.219e-05,2]
[395012009,1764324646922,-500.0,8.219e-05,2]
[395012010,1764324646931,-461.84945947,8.691e-05,2]
[395012011,1764324646940,-182.46647362,8.973e-05,2]
[395012012,1764324646949,-19978.06677882,0.0001,2]
[395012013,1764325199891,200.0,0.0002,30]
[395012014,1764325202356,200.0,0.0002,30]
[395012015,1764325204807,200.0,0.0002,30]
[395012050,1764325831752,-361.5499906,6.802e-05,2]
[395012051,1764325831763,-209.0,6.871e-05,2]
[395012052,1764325831773,-152.5499906,6.906e-05,2]
[395012053,1764325831784,-1200.0,6.976e-05,2]
[395012054,1764325831795,-300.0,6.976e-05,2]
[395012055,1764325831806,-300.0,6.976e-05,2]
[395012056,1764325831816,-300.0,6.976e-05,2]
[395012057,1764325831827,-1200.0,6.976e-05,2]
[395012058,1764325831838,-300.0,6.976e-05,2]
[395012059,1764325831850,-31960.53726659,6.977e-05,2]
[395012060,1764325831861,-166.22853766,7.075e-05,2]
[395012061,1764325831871,-500.0,7.075e-05,2]
[395012062,1764325831881,-155.39599728,7.075e-05,2]
[395012063,1764325831891,-500.0,7.075e-05,2]
[395012064,1764325831902,-500.0,7.075e-05,2]
[395012065,1764325831914,-183.72,7.075e-05,2]
[395012066,1764325831926,-500.0,7.075e-05,2]
[395012067,1764325831936,-500.0,7.075e-05,2]
[395012068,1764325831946,-500.0,7.075e-05,2]
[395012069,1764325831956,-500.0,7.075e-05,2]
[395012070,1764325831967,-500.0,7.075e-05,2]
[395012071,1764325831977,-500.0,7.075e-05,2]
[395012072,1764325831987,-639.3009522,7.075e-05,2]
[395012073,1764325831999,-500.0,7.075e-05,2]
[395012074,1764325832009,-500.0,7.075e-05,2]
[395012075,1764325832019,-635.8240565,7.075e-05,2]
[395012076,1764325832031,-615.65445944,7.075e-05,2]
[395012077,1764325832044,-500.0,7.075e-05,2]
[395012078,1764325832054,-500.0,7.075e-05,2]
[395012079,1764325832065,-500.0,7.075e-05,2]
[395012080,1764325832075,-500.0,7.075e-05,2]
[395012081,1764325832086,-500.0,7.075e-05,2]
[395012082,1764325832096,-500.0,7.075e-05,2]
[395012083,1764325832106,-500.0,7.075e-05,2]
[395012084,1764325832116,-500.0,7.075e-05,2]
[395012085,1764325832127,-78.55400829,7.075e-05,2]
[395012086,1764325832140,-421.44599171,7.075e-05,2]
[395012087,1764325832151,-500.0,7.075e-05,2]
[395012088,1764325832161,-500.0,7.075e-05,2]
[395012089,1764325832171,-500.0,7.075e-05,2]
[395012090,1764325832181,-500.0,7.075e-05,2]
[395012091,1764325832192,-656.1323974,7.075e-05,2]
[395012092,1764325832203,-656.1323974,7.075e-05,2]
[395012093,1764325832214,-656.1323974,7.075e-05,2]
[395012094,1764325832224,-656.1323974,7.075e-05,2]
[395012095,1764325832235,-656.1323974,7.075e-05,2]
[395012096,1764325832247,-656.1323974,7.075e-05,2]
[395012097,1764325832258,-656.1323974,7.075e-05,2]
[395012098,1764325832268,-656.1323974,7.075e-05,2]
[395012099,1764325832279,-656.1323974,7.075e-05,2]
[395012100,1764325832290,-656.1323974,7.075e-05,2]
[395012101,1764325832300,-656.1323974,7.075e-05,2]
[395012102,1764325832313,-656.1323974,7.075e-05,2]
[395012103,1764325832324,-656.1323974,7.075e-05,2]
[395012104,1764325832334,-656.1323974,7.075e-05,2]
[395012105,1764325832346,-656.1323974,7.075e-05,2]
[395012106,1764325832356,-656.1323974,7.075e-05,2]
[395012107,1764325832367,-656.1323974,7.075e-05,2]
[395012108,1764325832378,-656.1323974,7.075e-05,2]
[395012109,1764325832388,-656.1323974,7.075e-05,2]
[395012110,1764325832400,-656.1323974,7.075e-05,2]
[395012111,1764325832410,-261.9282941,7.075e-05,2]
[395012112,1764325832423,-394.2041033,7.075e-05,2]
[395012113,1764325832434,-656.1323974,7.075e-05,2]
[395012114,1764325832444,-656.1323974,7.075e-05,2]
[395012115,1764325832454,-656.1323974,7.075e-05,2]
[395012116,1764325832464,-656.1323974,7.075e-05,2]
[395012117,1764325832475,-656.1323974,7.075e-05,2]
[395012118,1764325832486,-656.1323974,7.075e-05,2]
[395012119,1764325832496,-656.1323974,7.075e-05,2]
[395012120,1764325832507,-656.1323974,7.075e-05,2]
[395012121,1764325832518,-656.1323974,7.075e-05,2]
[395012122,1764325832528,-656.1323974,7.075e-05,2]
[395012123,1764325832539,-656.1323974,7.075e-05,2]
[395012124,1764325832549,-656.1323974,7.075e-05,2]
[395012125,1764325832560,-202.13317213,7.075e-05,2]
[395012128,1764325837665,-453.99922527,7.075e-05,2]
[395012129,1764325837674,-656.1323974,7.075e-05,2]
[395012130,1764325837683,-656.1323974,7.075e-05,2]
[395012131,1764325837692,-425.22339708,7.075e-05,2]
[395012132,1764325837720,-230.90900032,7.075e-05,2]
[395012133,1764325837730,-656.1323974,7.075e-05,2]
[395012134,1764325837739,-656.1323974,7.075e-05,2]
[395012135,1764325837748,-656.1323974,7.075e-05,2]
[395012136,1764325837758,-277.94570281,7.075e-05,2]
[395012137,1764325837769,-378.18669459,7.075e-05,2]
[395012138,1764325837778,-656.1323974,7.075e-05,2]
[395012139,1764325837787,-656.1323974,7.075e-05,2]
[395012140,1764325837796,-656.1323974,7.075e-05,2]
[395012141,1764325837806,-656.1323974,7.075e-05,2]
[395012142,1764325837815,-135.32626992,7.075e-05,2]
[395012143,1764325837826,-520.80612748,7.075e-05,2]
[395012144,1764325837836,-656.1323974,7.075e-05,2]
[395012145,1764325837845,-656.1323974,7.075e-05,2]
[395012146,1764325837858,-483.0427257,7.075e-05,2]
[395012166,1764325839928,-2000.04507,7.004e-05,2]
[395012167,1764325839980,-452.649032,7.004e-05,2]
[395012168,1764325839992,-433.33155169,7.004e-05,2]
[395012169,1764325840003,-2609.2519478,7.004e-05,2]
[395012170,1764325840035,-892.80800524,7.004e-05,2]
[395012176,1764325843081,-28240.96105676,7.004e-05,2]
[395012177,1764325843091,-173.0896717,7.075e-05,2]
[395012178,1764325843101,-656.1323974,7.075e-05,2]
[395012179,1764325843111,-656.1323974,7.075e-05,2]
[395012180,1764325843120,-656.1323974,7.075e-05,2]